Cogmind - Beta 12 @@@ ROGUE MODE // 2023.04.13 @ 09:31:22 Player: Mr Goldstein Result: Destroyed by G-47 Trooper with Particle Gun Performance ------------- Evolutions (2) 1000 Regions Visited (3) 600 Robots Destroyed (0) 0 Value Destroyed (0) 0 Prototype IDs (2) 40 Alien Tech Used (0) 0 Bonus (7460) 7460 TOTAL SCORE: 9100 Bonus ------- Fragile Parts 500 Gauntlet 1500 No Salvage 500 Pure Core 1000 Scavenger 2000 Simple Hacker 490 Unstable Evolution 1000 Pacifist 470 Cogmind --------- Core Integrity 0/550 Matter 232/300 Energy 99/100 System Corruption 2% Temperature Cool (9) Movement Core (50) Location -8/Materials Parts ------- > --- POWER (1) -------- (None) > --- PROPULSION (3) --- (None) > --- UTILITY (5) ------ Visual Processing Unit > --- WEAPON (2) ------- (None) > --- INVENTORY (0) ---- (None) Peak State ------------ > --- POWER ------------ (None) > --- PROPULSION ------- (None) > --- UTILITY ---------- Visual Processing Unit > --- WEAPON ----------- Improved Datajack > --- INVENTORY -------- (None) [Rating: 5] Favorites ----------- Power Light Ion Engine Engine Light Ion Engine Propulsion None Utility Visual Processing Unit Device Thermal Generator Processor Visual Processing Unit Weapon Improved Datajack Special Melee Weapon Improved Datajack Build | -11 -10 -9 -8 ------- Run | Jun Mat Mat Mat Slots Evolved 4 | . . 2 2 Power . | . . . . Propulsion 1 | . . . 1 Utility 3 | . . 2 1 Weapon . | . . . . Parts Attached 4 | 1 . . 3 Power 1 | 1 . . . Engine 1 | 1 . . . Core . | . . . . Reactor . | . . . . Propulsion . | . . . . Treads . | . . . . Leg . | . . . . Wheel . | . . . . Hover . | . . . . Flight . | . . . . Utility 2 | . . . 2 Device 1 | . . . 1 Storage . | . . . . Processor 1 | . . . 1 Hackware . | . . . . Protection . | . . . . Artifact . | . . . . Weapon 1 | . . . 1 Energy Gun . | . . . . Energy Cannon . | . . . . Ballistic Gun . | . . . . Ballistic Cannon . | . . . . Launcher . | . . . . Special Weapon . | . . . . Impact Weapon . | . . . . Slashing Weapon . | . . . . Piercing Weapon . | . . . . Special Melee Weapon 1 | . . . 1 Unidentified Prototypes . | . . . . Parts Lost 2 | . 1 . 1 Power 1 | . 1 . . Propulsion . | . . . . Utility . | . . . . Weapon 1 | . . . 1 Highest Loss Streak 1 | . 1 . 1 To Critical Strikes . | . . . . Average Slot Usage (%) 4 | . 8 . 6 Engine 2 | . 8 . . Processor 2 | . . . 5 Naked Turns 226 | . 43 119 64 Heaviest Build 3 | 3 3 . 1 Greatest Support 3 | 3 3 3 3 Greatest Overweight (x) . | . . . . Average Overweight (x) . | . . . . Largest Inventory Capacity . | . . . . Average Capacity . | . . . . Most Carried . | . . . . Average Carried . | . . . . Final Capacity . | . . . . Final Carried . | . . . . Class Distribution -------------------- 100% | Mutant Dominant Class ---------------- Mutant | -10/Materials Mutant | -9/Materials Mutant | -8/Materials Resources | -11 -10 -9 -8 ----------- Run | Jun Mat Mat Mat Matter Collected 122 | 95 . 17 10 Remotely . | . . . . Salvage Created . | . . . . Parts . | . . . . Haulers Intercepted . | . . . . Recyclers Shooed . | . . . . Parts Field Recycled . | . . . . Retrieved Matter . | . . . . Parts Self-Destructed . | . . . . Prevented . | . . . . Kills | -11 -10 -9 -8 ------- Run | Jun Mat Mat Mat Combat Hostiles Destroyed . | . . . . Classes Destroyed . | . . . . Best Kill Streak . | . . . . Combat Bots Only . | . . . . Max Kills in Single Turn . | . . . . Gunslinging . | . . . . Exploded . | . . . . Melee . | . . . . Uniques/NPCs Destroyed . | . . . . Combat | -11 -10 -9 -8 -------- Run | Jun Mat Mat Mat Damage Taken 1074 | . 181 320 573 Core 1014 | . 136 320 558 Absorbed by Shields . | . . . . Core Remaining (%) 55 | 100 45 20 . Volleys Fired . | . . . . Largest . | . . . . Hottest . | . . . . Shots Fired . | . . . . Gun . | . . . . Cannon . | . . . . Launcher . | . . . . Special . | . . . . Kinetic . | . . . . Thermal . | . . . . Explosive . | . . . . Electromagnetic . | . . . . Robot Hit Streak . | . . . . Robot Miss Streak . | . . . . Penetration Max . | . . . . Secondary Targets . | . . . . Shots Hit Robots . | . . . . Core Hits 2 | . . . 2 Critical Kills . | . . . . Critical Parts Destroyed . | . . . . Critical Strikes . | . . . . Melee Attacks . | . . . . Impact . | . . . . Slashing . | . . . . Piercing . | . . . . Sneak Attacks . | . . . . Combat Hostiles . | . . . . Follow-up Attacks . | . . . . Damage Inflicted 52 | . 6 28 18 Guns . | . . . . Cannons . | . . . . Explosions . | . . . . Melee . | . . . . Ramming 52 | . 6 28 18 Kinetic . | . . . . Thermal . | . . . . Explosive . | . . . . Electromagnetic . | . . . . Impact . | . . . . Slashing . | . . . . Piercing . | . . . . Highest Corruption 2 | . . 1 2 Average Corruption 1 | . . 1 2 Corruption Purged . | . . . . Corruption Blocked . | . . . . Effects 1 | . . . 1 Data Loss (minor) 1 | . . . 1 Overload Shots . | . . . . Overflow Damage . | . . . . Projectiles . | . . . . Explosions . | . . . . Melee . | . . . . Knockbacks . | . . . . Impact . | . . . . Kinetic . | . . . . Secondary . | . . . . Self-Inflicted Damage 23 | . 3 13 7 Shots . | . . . . Rammed 11 | . 1 4 6 Targets Rammed 11 | . 1 4 6 Kicked . | . . . . Crushed . | . . . . Highest Temperature 7 | . 7 2 . Average Temperature 4 | . 7 2 . Received Heat Transfer 465 | . 114 117 234 Siege Activations . | . . . . Robots Corrupted . | . . . . Combat Hostiles . | . . . . Parts Fried . | . . . . Impact Corruptions . | . . . . Robots Melted . | . . . . Combat Hostiles . | . . . . Parts Melted . | . . . . Heat Transferred . | . . . . Parts Sabotaged . | . . . . Parts Stolen . | . . . . Parts Stripped . | . . . . Power Chain Reactions . | . . . . Missiles Intercepted . | . . . . Alert | -11 -10 -9 -8 ------- Run | Jun Mat Mat Mat Peak Influence 299 | . 95 219 299 Initial 92 | . . 39 92 Average 112 | . 25 120 164 Maximum Alert Level 1 | . . 1 1 Low Security (%) 79 | 100 100 77 68 Level 1 20 | . . 22 31 Level 2 . | . . . . Level 3 . | . . . . Level 4 . | . . . . Level 5 . | . . . . High Security . | . . . . Max Security . | . . . . Squads Dispatched 6 | . . 2 4 Investigation 3 | . . 1 2 Extermination . | . . . . Reinforcement 3 | . . 1 2 Assault . | . . . . Garrison . | . . . . Intercept . | . . . . Searches Triggered . | . . . . Construction Impeded . | . . . . Haulers Reinforced . | . . . . Active Scanning Responses . | . . . . Cargo Convoy Interrupts . | . . . . Stealth | -11 -10 -9 -8 --------- Run | Jun Mat Mat Mat Distress Signals 7 | . 1 2 4 Communications Jammed . | . . . . Distress Signals . | . . . . Times Spotted 44 | . 7 13 24 Peak Tracking Total 14 | . 7 9 14 Tactical Retreats 9 | . 2 3 4 Traps | -11 -10 -9 -8 ------- Run | Jun Mat Mat Mat Traps Triggered 1 | . . . 1 Indirectly . | . . . . Trap Hack Attempts . | . . . . Triggered . | . . . . Disarmed . | . . . . Reprogrammed . | . . . . Reused . | . . . . Traps Extracted . | . . . . Installed . | . . . . Triggered . | . . . . Machines | -11 -10 -9 -8 ---------- Run | Jun Mat Mat Mat Machines Disabled . | . . . . Max in Single Turn . | . . . . Machines Repaired . | . . . . Machines Sabotaged . | . . . . Overloaded Fab Kills . | . . . . Hacking | -11 -10 -9 -8 --------- Run | Jun Mat Mat Mat Machines Accessed 4 | . . 1 3 Terminals 4 | . . 1 3 Fabricators . | . . . . Repair Stations . | . . . . Recycling Units . | . . . . Scanalyzers . | . . . . Garrison Access . | . . . . Total Hacks 13 | . . 3 10 Successful 2 | . . . 2 Failed 11 | . . 3 8 Catastrophic 2 | . . . 2 Database Lockouts . | . . . . Manual . | . . . . Terminals 13 | . . 3 10 Fabricators . | . . . . Repair Stations . | . . . . Recycling Units . | . . . . Scanalyzers . | . . . . Garrison Access . | . . . . Terminal Hacks 2 | . . . 2 Prototype ID Bank 1 | . . . 1 Branch Access Points 1 | . . . 1 Fabricator Hacks . | . . . . Repair Station Hacks . | . . . . Recycling Unit Hacks . | . . . . Scanalyzer . | . . . . Garrison Access Hacks . | . . . . Unauthorized Hacks . | . . . . Terminals . | . . . . Fabricators . | . . . . Repair Stations . | . . . . Recycling Units . | . . . . Scanalyzers . | . . . . Garrison Access . | . . . . Data Cores Recovered . | . . . . Used . | . . . . Hacking Detections 4 | . . 1 3 Full Trace Events 3 | . . 1 2 Feedback Events . | . . . . Feedback Blocked . | . . . . Robot Schematics Acquired . | . . . . Robots Built . | . . . . Authchips . | . . . . Time . | . . . . Total Robot Build Rating . | . . . . Part Schematics Acquired . | . . . . Parts Built . | . . . . Authchips . | . . . . Time . | . . . . Total Part Build Rating . | . . . . Parts Repaired . | . . . . Time . | . . . . Parts Recycled . | . . . . Recycled Matter . | . . . . Retrieved Matter . | . . . . Retrieved Components . | . . . . Parts Scanalyzed . | . . . . Part Schematics Acquired . | . . . . Parts Damaged . | . . . . Bothacking | -11 -10 -9 -8 ------------ Run | Jun Mat Mat Mat Used RIF Installer . | . . . . Robots Hacked . | . . . . Non-combat . | . . . . Combat . | . . . . Robot Hacks Applied . | . . . . Relay Couplers Released . | . . . . Fabnet Peak Effective % . | . . . . Robots Rewired . | . . . . Allies Hacked . | . . . . Hacks Repelled . | . . . . Allies | -11 -10 -9 -8 -------- Run | Jun Mat Mat Mat Total Allies . | . . . . Largest Group . | . . . . Highest-Rated Group . | . . . . Highest-Rated Ally . | . . . . Total Orders . | . . . . Ally Attacks . | . . . . Total Damage . | . . . . Kills . | . . . . Allies Corrupted . | . . . . Allies Melted . | . . . . Intel | -11 -10 -9 -8 ------- Run | Jun Mat Mat Mat Robot Analysis Total . | . . . . Derelict Logs Recovered . | . . . . Drone Launches . | . . . . Drone Recoveries . | . . . . Exploration | -11 -10 -9 -8 ------------- Run | Jun Mat Mat Mat Turns Passed 413 | 12 103 119 179 Spaces Moved 790 | 21 204 230 335 Core 790 | 21 204 230 335 Treads . | . . . . Legs . | . . . . Wheels . | . . . . Hover . | . . . . Flight . | . . . . Fastest Speed 50 | 50 50 50 50 Average Speed 50 | 50 50 50 50 Slowest Speed 50 | 50 50 50 50 Overloaded Moves . | . . . . Propulsion Burnouts . | . . . . Robots Hopped . | . . . . Cave-ins Triggered . | . . . . Exploration Rate (%) 30 | 4 42 34 42 Regions Visited 3 Branch Regions . Pre-discovered Areas . | . . . . Known Exits Taken . | . . . . Unknown Exits Taken 3 | 1 1 1 . Scrap Searched . | . . . . Spaces Dug . | . . . . Terrain Destroyed . | . . . . Melee . | . . . . Projectile . | . . . . AOE . | . . . . Terrain Rammed . | . . . . Walls Destroyed . | . . . . Machines Disabled . | . . . . Actions | -11 -10 -9 -8 --------- Run | Jun Mat Mat Mat Total 803 | 21 204 233 345 Wait . | . . . . Move 787 | 20 203 229 335 Hop . | . . . . Pick Up . | . . . . Fast Attach 4 | 1 . . 3 Attach . | . . . . Detach . | . . . . Swap . | . . . . Drop 1 | . . . 1 Fire . | . . . . Melee . | . . . . Ram 11 | . 1 4 6 Kick . | . . . . Crush . | . . . . Escape Stasis . | . . . . Rewire . | . . . . Trap . | . . . . Miscellaneous . | . . . . Route ------- -11/Junkyard -10/Materials -9/Materials -8/Materials History --------- Turn | Location | Event 3 | -11/Junkyard | Discovered new exit (range 16) 13 | -11/Junkyard | Entered Materials 40 | -10/Materials | Discovered new exit (range 15) 66 | -10/Materials | Discovered new exit (range 15) 79 | -10/Materials | Core integrity fell below 50% 108 | -10/Materials | Discovered new exit (range 15) 116 | -10/Materials | Entered another Materials area 116 | -9/Materials | Evolved 2 slots: Utility x2 165 | -9/Materials | Core integrity fell below 50% 174 | -9/Materials | Discovered new exit (range 8) 228 | -9/Materials | Discovered new exit (range 14) 235 | -9/Materials | Entered another Materials area 235 | -8/Materials | Evolved 2 slots: Propulsion x1, Utility x1 304 | -8/Materials | Discovered new exit (range 5) 321 | -8/Materials | Build established: Mutant 363 | -8/Materials | Core integrity fell below 50% 377 | -8/Materials | Discovered new exit (range 14) 399 | -8/Materials | Identified exit to Storage 410 | -8/Materials | Discovered new exit (range 18) 411 | -8/Materials | Core integrity fell below 20% 414 | -8/Materials | Destroyed by G-47 Trooper with Particle Gun Last Messages --------------- 00382_ O-16 Technician: "IFF HANDSHAKE FAILED. SECURING TERMINAL." 00385_ Connecting with Terminal... 00385_ ALERT: Suspicious activity at Terminal M012. Dispatching Investigation squad. 00387_ ALERT: Hostiles spotted, dispatching reinforcements to Terminal M005. 00389_ Triggered Shock Trap. 00389_ The floor emits a surge of raw power. 00389_ System corrupted (+2). 00399_ Connecting with Terminal... >>Access(Branch) Found 1 branch access point: (82,83) Storage Map updated. >>Prototypes Downloading prototype IDs... Imp. Medium Laser Cld. Particle Cannon 00400_ System corrupted: Component data lost. 00410_ EXIT=FOUND (Blocked) 00410_ Penetrated by Slug. Map ----- +----------------------------------------------------+ | #???????# #???????????# # """ """#? | | ???########^ #???????# #???????????# # #? | | ??????????# #???????# #???????????# # = #? | | ??????????# #???????# #???????????# # #? | | ??????????# #???????# #???????????# # #? | | ??????????# #???????# #####???????? ###########? | | ??????????# #???????# ######### #??????????? | | ??????????# ######### #??????????? | | ??????????# T +??????????? | | ??????????# #??????????? | | ??????????# g #### #????????### | | ??????????############## ##???????? ?????????# | | ???????????????????????# #????????? ?????????# " | | ???????????????????????# #???????????????????# " | | ???????????????????????#gg #???????????????????# | | ???????????????????????# #???????????????????? | | ???????????????????????# #???????????????????? | | ???????????????????????# #????????????????????#+ | | ???????????????????????# #???????????????###### | | ???????????????????????# #???????????????# # | | ???????????????????????# #???????????????#"" # | | ???????????????????????# #???????????????#"T + | | ???????????????????????# #???????????????#"" # | | ???????????????????????# #???????????????# !# | | ???????????????????????# #???????????????# # | | ???????????????????????# @ #???????????????###### | | ???????????????????????#% #????????????????# | | ???????????????????????# #????????????????#! | | ???????????????????????# #????????????????##!!!! | | ???????????????????????# #?????????????????##### | | ???????????????????????# #??????????????????#### | | ???????????????????????# #???????????????# ? | | ???????????????????????# #???????????????#! """" | | ???????????????????????# +???????????????# """" | | ???????????????????????# #???????????????# """" | | ???????????????????????# #???????????????# """" | | ???????????????????????# #???????????????# """" | | ???????????????????????# #??????????????## """" | | ???????????????????????# #??????????????# ! """" | | ???????????????????????# #???????????????# | | ???????????????????????# #???????????????####/## | | ???????????????????????# #??????????????????# #? | | ???????????????????????# +??????????????????# #? | | ???????????????????????# #??????????????????# #? | | ???????????????????????# #??????????????????# ## | | ???????????????????????# #??????????????????# | | ???????????????????????# ???????????????????# ## | | ???????????????????????# ???????????????????# # | | ???????????????????????? ???????????????????# # | | ???????????????????????? < ???????????????????# # | +----------------------------------------------------+ Best States ------------- Heat Dissipation 31 Energy Generation 10 Energy Capacity 125 Matter Stores 232 Matter Capacity 300 Sight Range 18 Terrain Scan Density 10 Evasion (%) 50 Item Schematics ----------------- None Robot Schematics ------------------ None Fabricated ------------ Nothing Alien Tech Used ----------------- None Achievements -------------- None Challenges ------------ Fragile Parts Gauntlet No Salvage Pure Core Scavenger Simple Hacker Unstable Evolution Game ------ Seed AssembledPlatingAutocannon Manual? 0 Play Time 00:08:20 Cumulative 97.5 hours Start 2023.04.13 @ 09:25:48 End 2023.04.13 @ 09:31:22 Sessions 1 Manual Loads 0 Difficulty Rogue Special Mode None Game No. 219 Rogue 219 Adventurer 0 Explorer 0 Win Type - Total 3 Types 3/0/0/0/0/0/0/0/0 Lore% 55 Gallery% 57 Achievement% 48 Wizard Run 0 Options --------- ASCII 0 Keyboard 0 Movement Numpad Keybinds 0 Fullscreen 1 Font 12/Smallcaps Map View 83x54 Tactical HUD 1 Map Filters NONE Filters NONE Steam 1 RUN: 5c03e30d-48d8-4fe1-840f-e7704060e925